fUSD/lending_fUSD_20250124
["ID","MTS","AMOUNT","RATE_DAILY","PERIOD"]
[350247364,1737735071315,-500.0,0.00019515,2]
[350247365,1737735071328,-500.0,0.00019515,2]
[350247366,1737735071337,-327.841214,0.00019515,2]
[350247367,1737735071347,-327.841214,0.00019515,2]
[350247368,1737735071358,-500.0,0.00019515,2]
[350247369,1737735071367,-500.0,0.00019515,2]
[350247370,1737735071376,-677.93,0.00019515,2]
[350247371,1737735071386,-500.0,0.00019515,2]
[350247372,1737735071395,-660.08,0.00019515,2]
[350247373,1737735071404,-500.0,0.00019515,2]
[350247374,1737735071414,-589.35,0.00019515,2]
[350247375,1737735071424,-500.0,0.00019515,2]
[350247376,1737735071434,-151.0,0.00019515,2]
[350247377,1737735071444,-500.0,0.00019515,2]
[350247378,1737735071454,-151.0,0.00019515,2]
[350247379,1737735071463,-770.43,0.00019515,2]
[350247380,1737735071472,-500.0,0.00019515,2]
[350247381,1737735071482,-500.0,0.00019515,2]
[350247382,1737735071493,-151.0,0.00019515,2]
[350247383,1737735071503,-500.0,0.00019515,2]
[350247384,1737735071513,-513.79,0.00019515,2]
[350247385,1737735071523,-500.0,0.00019515,2]
[350247386,1737735071533,-580.89,0.00019515,2]
[350247387,1737735071542,-614.29,0.00019515,2]
[350247388,1737735071555,-500.0,0.00019515,2]
[350247389,1737735071567,-500.0,0.00019515,2]
[350247390,1737735071578,-474.6954065,0.00019515,2]
[350247391,1737735071587,-500.0,0.00019515,2]
[350247392,1737735071601,-566.81,0.00019515,2]
[350247393,1737735071610,-767.86,0.00019515,2]
[350247394,1737735071620,-654.02,0.00019515,2]
[350247395,1737735071629,-500.0,0.00019515,2]
[350247396,1737735071639,-500.0,0.00019515,2]
[350247397,1737735071648,-500.0,0.00019515,2]
[350247398,1737735071658,-500.0,0.00019515,2]
[350247399,1737735071667,-500.0,0.00019515,2]
[350247400,1737735071677,-500.0,0.00019515,2]
[350247401,1737735071687,-500.0,0.00019515,2]
[350247402,1737735071698,-500.0,0.00019515,2]
[350247403,1737735071712,-500.0,0.00019515,2]
[350247404,1737735071725,-509.94,0.00019515,2]
[350247405,1737735071734,-500.0,0.00019515,2]
[350247406,1737735071746,-798.82,0.00019515,2]
[350247407,1737735071755,-652.05,0.00019515,2]
[350247408,1737735071765,-846.33,0.00019515,2]
[350247409,1737735071889,-770.06,0.00019515,2]
[350247410,1737735071901,-937.47,0.00019515,2]
[350247411,1737735071911,-672.05,0.00019515,2]
[350247412,1737735071922,-500.0,0.00019515,2]
[350247413,1737735071932,-692.99,0.00019515,2]
[350247414,1737735071944,-500.0,0.00019515,2]
[350247415,1737735071954,-500.0,0.00019515,2]
[350247416,1737735071966,-500.0,0.00019515,2]
[350247417,1737735071977,-500.0,0.00019515,2]
[350247418,1737735071989,-1011.61,0.00019515,2]
[350247419,1737735072002,-500.0,0.00019515,2]
[350247420,1737735072013,-500.0,0.00019515,2]
[350247421,1737735072024,-500.0,0.00019515,2]
[350247422,1737735072034,-954.97,0.00019515,2]
[350247423,1737735072044,-594.05,0.00019515,2]
[350247424,1737735072055,-614.05,0.00019515,2]
[350247425,1737735072066,-652.47,0.00019515,2]
[350247426,1737735072076,-500.0,0.00019515,2]
[350247427,1737735072086,-500.0,0.00019515,2]
[350247428,1737735072097,-849.3,0.00019515,2]
[350247429,1737735072107,-500.0,0.00019515,2]
[350247430,1737735072117,-708.17,0.00019515,2]
[350247431,1737735072127,-511.38,0.00019515,2]
[350247432,1737735072137,-833.01,0.00019515,2]
[350247433,1737735072147,-681.69,0.00019515,2]
[350247434,1737735072157,-560.31,0.00019515,2]
[350247435,1737735072167,-500.0,0.00019515,2]
[350247436,1737735072177,-805.26,0.00019515,2]
[350247437,1737735072188,-697.85,0.00019515,2]
[350247438,1737735072198,-500.0,0.00019515,2]
[350247439,1737735072209,-500.0,0.00019515,2]
[350247440,1737735072218,-580.02,0.00019515,2]
[350247441,1737735072227,-500.0,0.00019515,2]
[350247442,1737735072237,-669.97,0.00019515,2]
[350247443,1737735072248,-500.0,0.00019515,7]
[350247444,1737735072258,-500.0,0.00019515,2]
[350247445,1737735072267,-500.0,0.00019515,2]
[350247446,1737735072277,-556.37,0.00019515,2]
[350247447,1737735072288,-500.0,0.00019515,2]
[350247448,1737735072297,-500.0,0.00019515,2]
[350247449,1737735072307,-1151.25,0.00019515,2]
[350247450,1737735072318,-582.4,0.00019515,2]
[350247451,1737735072328,-500.0,0.00019515,2]
[350247452,1737735072338,-1417.9,0.00019515,2]
[350247453,1737735072348,-656.44,0.00019515,2]
[350247454,1737735072358,-582.99,0.00019515,2]
[350247455,1737735072368,-500.0,0.00019515,2]
[350247456,1737735072378,-544.3,0.00019515,2]
[350247457,1737735072387,-500.0,0.00019515,2]
[350247458,1737735072397,-1083.19,0.00019515,2]
[350247459,1737735072407,-634.65,0.00019515,2]
[350247460,1737735072418,-500.0,0.00019515,2]
[350247461,1737735072427,-1858.23,0.00019515,2]
[350247462,1737735072437,-516.81,0.00019515,2]
[350247463,1737735072447,-1003.94,0.00019515,2]
[350247464,1737735072457,-500.0,0.00019515,2]
[350247465,1737735072466,-695.07,0.00019515,2]
[350247466,1737735072476,-424.01635382,0.00019515,2]
[350247467,1737735072486,-530.99,0.00019515,2]
[350247468,1737735072497,-4029.1,0.00019515,2]
[350247469,1737735072506,-500.0,0.00019515,2]
[350247470,1737735072516,-1624.84,0.00019515,2]
[350247471,1737735072525,-672.83,0.00019515,2]
[350247472,1737735072536,-500.0,0.00019515,2]
[350247473,1737735072546,-2230.2,0.00019515,2]
[350247474,1737735072556,-500.0,0.00019515,2]
[350247475,1737735072566,-500.0,0.00019515,2]
[350247476,1737735072575,-559.05,0.00019515,2]
[350247477,1737735072586,-1209.66,0.00019515,2]
[350247478,1737735072595,-1414.61,0.00019515,2]
[350247479,1737735072605,-500.0,0.00019515,2]
[350247480,1737735072615,-500.0,0.00019515,2]
[350247481,1737735072624,-3342.18,0.00019515,2]
[350247482,1737735072634,-500.0,0.00019515,2]
[350247483,1737735072645,-500.0,0.00019515,2]
[350247484,1737735072654,-2092.8,0.00019515,2]
[350247485,1737735072664,-500.0,0.00019515,2]
[350247486,1737735072675,-500.0,0.00019515,2]
[350247487,1737735072684,-521.83,0.00019515,2]
[350247488,1737735072693,-1013.22,0.00019515,2]
[350247489,1737735072703,-500.0,0.00019515,2]
[350247490,1737735072714,-500.0,0.00019515,2]
[350247491,1737735072723,-926.77,0.00019515,2]
[350247492,1737735072733,-500.0,0.00019515,2]
[350247493,1737735072744,-926.0,0.00019515,2]
[350247494,1737735072754,-6114.66,0.00019515,2]
[350247495,1737735072763,-500.0,0.00019516,2]
[350247496,1737735072773,-500.0,0.00019516,2]
[350247497,1737735072783,-500.0,0.00019516,2]
[350247498,1737735072793,-500.0,0.00019516,2]
[350247499,1737735072803,-747.3,0.00019516,2]
[350247500,1737735072812,-578.69,0.00019516,2]
[350247501,1737735072822,-500.0,0.00019516,2]
[350247502,1737735072831,-550.89,0.00019516,2]
[350247503,1737735072841,-500.0,0.00019516,2]
[350247504,1737735072851,-412.09623298,0.00019516,2]
[350247505,1737735072860,-637.60863493,0.00019516,2]
[350247506,1737735072870,-500.0,0.00019516,2]
[350247507,1737735072882,-500.0,0.00019516,2]
[350247508,1737735072891,-623.66119626,0.00019521,2]
[350247509,1737735072901,-150.0,0.00019536,4]
[350247510,1737735072910,-500.0,0.00019536,2]
[350247511,1737735072922,-150.0,0.0001954,4]
[350247512,1737735072932,-150.0,0.00019549,2]
[350247513,1737735072942,-500.0,0.00019552,2]
[350247514,1737735072951,-798.61,0.00019552,2]
[350247515,1737735072962,-2156.11,0.00019552,2]
[350247516,1737735072971,-500.0,0.00019552,2]
[350247517,1737735072981,-927.0,0.00019552,2]
[350247518,1737735072991,-500.0,0.00019552,2]
[350247519,1737735073003,-544.0,0.00019552,2]
[350247520,1737735073014,-500.0,0.00019552,2]
[350247521,1737735073025,-517.74,0.00019552,2]
[350247522,1737735073035,-1223.83,0.00019552,2]
[350247523,1737735073046,-1716.18,0.00019552,2]
[350247524,1737735073055,-1769.78,0.00019552,2]
[350247525,1737735073066,-617.72,0.00019552,2]
[350247526,1737735073077,-3582.9,0.00019552,2]
[350247527,1737735073086,-6343.0,0.00019552,2]
[350247528,1737735073096,-851.26,0.00019552,2]
[350247529,1737735073106,-592.94,0.00019552,2]
[350247530,1737735073116,-500.0,0.00019552,2]
[350247531,1737735073130,-805.09,0.00019552,2]
[350247532,1737735073141,-1086.75,0.00019552,2]
[350247533,1737735073151,-1200.3,0.00019552,2]
[350247534,1737735073162,-500.0,0.00019552,2]
[350247535,1737735073172,-1000.0,0.00019552,2]
[350247536,1737735073182,-500.0,0.0001956,2]
[350247537,1737735073193,-301.5,0.00019567,2]
[350247538,1737735073203,-150.0,0.00019583,4]
[350247539,1737735073213,-1945.13531016,0.0001961,2]
[350247540,1737735073223,-150.0,0.00019613,4]
[350247541,1737735073233,-150.0,0.00019613,4]
[350247542,1737735073244,-623.66119626,0.00019624,2]
[350247543,1737735073255,-150.0,0.00019627,4]
[350247544,1737735073264,-509.51,0.00019651,2]
[350247545,1737735073274,-577.72,0.00019651,2]
[350247546,1737735073283,-580.64,0.00019651,2]
[350247547,1737735073293,-679.78,0.00019651,2]
[350247548,1737735073303,-1705.53,0.00019651,2]
[350247549,1737735073313,-2554.5,0.00019651,2]
[350247550,1737735073325,-676.513947,0.00019651,2]
[350247551,1737735073335,-500.0,0.00019651,2]
[350247552,1737735073345,-956.9,0.00019651,2]
[350247553,1737735073354,-1945.88,0.00019651,2]
[350247554,1737735073364,-2012.13,0.00019651,2]
[350247555,1737735073375,-622.12,0.00019651,2]
[350247556,1737735073385,-846.729176,0.00019651,2]
[350247557,1737735073396,-1583.64,0.00019651,2]
[350247558,1737735073406,-564.16,0.00019651,2]
[350247559,1737735073415,-1121.35,0.00019651,2]
[350247560,1737735073425,-871.63,0.00019651,2]
[350247561,1737735073550,-1370.61,0.00019651,2]
[350247562,1737735073561,-705.29,0.00019651,2]
[350247563,1737735073571,-1962.44,0.00019651,2]
[350247564,1737735073581,-718.17,0.00019651,2]
[350247565,1737735073590,-619.05,0.00019651,2]
[350247566,1737735073600,-865.04,0.00019651,2]
[350247567,1737735073610,-2217.77,0.00019651,2]
[350247568,1737735073621,-722.1,0.00019651,2]
[350247569,1737735073630,-562.1,0.00019651,2]
[350247570,1737735073640,-2901.51,0.00019651,2]
[350247571,1737735073650,-503.38,0.00019651,2]
[350247572,1737735073660,-1511.51,0.00019651,2]
[350247573,1737735073669,-500.0,0.00019651,2]
[350247574,1737735073679,-1656.27,0.00019651,2]
[350247575,1737735073688,-831.3,0.00019651,2]
[350247576,1737735073698,-1027.33,0.00019651,2]
[350247577,1737735073708,-1185.98,0.00019651,2]
[350247578,1737735073718,-985.79,0.00019651,2]
[350247579,1737735073729,-2108.39,0.00019651,2]
[350247580,1737735073739,-1080.47,0.00019651,2]
[350247581,1737735073750,-838.77,0.00019651,2]
[350247582,1737735073759,-538.96,0.00019651,2]
[350247583,1737735073769,-500.0,0.00019651,2]
[350247584,1737735073779,-578.58,0.00019651,2]
[350247585,1737735073788,-2039.23,0.00019651,2]
[350247586,1737735073798,-1068.15,0.00019651,2]
[350247587,1737735073808,-500.0,0.00019651,2]
[350247588,1737735073818,-1155.96,0.00019651,2]
[350247589,1737735073828,-2273.11,0.00019651,2]
[350247590,1737735073839,-1338.57,0.00019651,2]
[350247591,1737735073848,-3483.22,0.00019651,2]
[350247592,1737735073858,-500.0,0.00019651,2]
[350247593,1737735073868,-872.95,0.00019651,2]
[350247594,1737735073880,-1147.06,0.00019651,2]
[350247595,1737735073890,-500.0,0.00019651,2]
[350247596,1737735073899,-1277.07,0.00019651,2]
[350247597,1737735073911,-2989.39,0.00019651,2]
[350247598,1737735073921,-644.25,0.00019651,2]
[350247599,1737735073931,-871.11,0.00019651,2]
[350247600,1737735073940,-500.0,0.00019652,2]
[350247601,1737735073951,-500.0,0.00019652,2]
[350247602,1737735073960,-490.61603973,0.00019652,2]
[350247603,1737735073971,-500.0,0.00019652,2]
[350247604,1737735073980,-500.0,0.00019652,2]
[350247605,1737735073990,-500.0,0.00019652,2]
[350247606,1737735074003,-677.93,0.00019652,2]
[350247607,1737735074014,-500.0,0.00019652,2]
[350247608,1737735074023,-660.08,0.00019652,2]
[350247609,1737735074032,-500.0,0.00019652,2]
[350247610,1737735074042,-589.35,0.00019652,2]
[350247611,1737735074051,-500.0,0.00019652,2]
[350247612,1737735074061,-500.0,0.00019652,2]
[350247613,1737735074071,-770.43,0.00019652,2]
[350247614,1737735074081,-500.0,0.00019652,2]
[350247615,1737735074090,-500.0,0.00019652,2]
[350247616,1737735074100,-500.0,0.00019652,2]
[350247617,1737735074109,-513.79,0.00019652,2]
[350247618,1737735074119,-500.0,0.00019652,2]
[350247619,1737735074130,-580.89,0.00019652,2]
[350247620,1737735074139,-614.29,0.00019652,2]
[350247621,1737735074150,-500.0,0.00019652,2]
[350247622,1737735074159,-500.0,0.00019652,2]
[350247623,1737735074169,-500.0,0.00019652,2]
[350247624,1737735074179,-566.81,0.00019652,2]
[350247625,1737735074189,-767.86,0.00019652,2]
[350247626,1737735074199,-654.02,0.00019652,2]
[350247627,1737735074209,-500.0,0.00019652,2]
[350247628,1737735074220,-500.0,0.00019652,2]
[350247629,1737735074229,-500.0,0.00019652,2]
[350247630,1737735074242,-500.0,0.00019652,2]
[350247631,1737735074269,-500.0,0.00019652,2]
[350247632,1737735074289,-500.0,0.00019652,2]
[350247633,1737735074311,-500.0,0.00019652,2]
[350247634,1737735074334,-500.0,0.00019652,2]
[350247635,1737735074352,-500.0,0.00019652,2]
[350247636,1737735074374,-509.94,0.00019652,2]
[350247637,1737735074397,-500.0,0.00019652,2]
[350247638,1737735074419,-798.82,0.00019652,2]
[350247639,1737735074438,-652.05,0.00019652,2]
[350247640,1737735074458,-846.33,0.00019652,2]
[350247641,1737735074479,-770.06,0.00019652,2]
[350247642,1737735074497,-937.47,0.00019652,2]
[350247643,1737735074517,-672.05,0.00019652,2]
[350247644,1737735074533,-500.0,0.00019652,2]
[350247645,1737735074552,-692.99,0.00019652,2]
[350247646,1737735074569,-500.0,0.00019652,2]
[350247647,1737735074586,-500.0,0.00019652,2]
[350247648,1737735074603,-500.0,0.00019652,2]
[350247649,1737735074619,-500.0,0.00019652,2]
[350247650,1737735074635,-1011.61,0.00019652,2]
[350247651,1737735074651,-500.0,0.00019652,2]
[350247652,1737735074668,-500.0,0.00019652,2]
[350247653,1737735074683,-500.0,0.00019652,2]
[350247654,1737735074699,-954.97,0.00019652,2]
[350247655,1737735074716,-594.05,0.00019652,2]
[350247656,1737735074732,-614.05,0.00019652,2]
[350247657,1737735074749,-652.47,0.00019652,2]
[350247658,1737735074765,-403.64937335,0.00019652,2]
[350247659,1737735074781,-500.0,0.00019652,2]
[350247660,1737735074799,-849.3,0.00019652,2]
[350247661,1737735074816,-708.17,0.00019652,2]
[350247662,1737735074832,-511.38,0.00019652,2]
[350247663,1737735074850,-833.01,0.00019652,2]
[350247664,1737735074867,-681.69,0.00019652,2]
[350247665,1737735074886,-560.31,0.00019652,2]
[350247666,1737735074902,-500.0,0.00019652,2]
[350247667,1737735074919,-805.26,0.00019652,2]
[350247668,1737735074937,-697.85,0.00019652,2]
[350247669,1737735074954,-500.0,0.00019652,2]
[350247670,1737735074971,-500.0,0.00019652,2]
[350247671,1737735074988,-580.02,0.00019652,2]
[350247672,1737735075005,-500.0,0.00019652,2]
[350247673,1737735075022,-669.97,0.00019652,2]
[350247674,1737735075039,-500.0,0.00019652,7]
[350247675,1737735075057,-500.0,0.00019652,2]
[350247676,1737735075074,-500.0,0.00019652,2]
[350247677,1737735075091,-556.37,0.00019652,2]
[350247678,1737735075107,-500.0,0.00019652,2]
[350247679,1737735075124,-500.0,0.00019652,2]
[350247680,1737735075141,-1151.25,0.00019652,2]
[350247681,1737735075157,-582.4,0.00019652,2]
[350247682,1737735075175,-500.0,0.00019652,2]
[350247683,1737735075196,-1417.9,0.00019652,2]
[350247684,1737735075217,-656.44,0.00019652,2]
[350247685,1737735075235,-582.99,0.00019652,2]
[350247686,1737735075253,-179.51,0.00019652,2]
[350247687,1737735075271,-544.3,0.00019652,2]
[350247688,1737735075290,-500.0,0.00019652,2]
[350247689,1737735075308,-1083.19,0.00019652,2]
[350247690,1737735075324,-634.65,0.00019652,2]
[350247691,1737735075341,-574.89078576,0.00019652,2]
[350247692,1737735075359,-1858.23,0.00019652,2]
[350247693,1737735075378,-516.81,0.00019652,2]
[350247694,1737735075395,-1003.94,0.00019652,2]
[350247695,1737735075413,-500.0,0.00019652,2]
[350247696,1737735075430,-695.07,0.00019652,2]
[350247697,1737735075449,-530.99,0.00019652,2]
[350247698,1737735075465,-4029.1,0.00019652,2]
[350247699,1737735075483,-500.0,0.00019652,2]
[350247700,1737735075659,-1624.84,0.00019652,2]
[350247701,1737735075669,-672.83,0.00019652,2]
[350247702,1737735075679,-500.0,0.00019652,2]
[350247703,1737735075688,-2230.2,0.00019652,2]
[350247704,1737735075698,-500.0,0.00019652,2]
[350247705,1737735075708,-500.0,0.00019652,2]
[350247706,1737735075718,-559.05,0.00019652,2]
[350247707,1737735075729,-1209.66,0.00019652,2]
[350247708,1737735075739,-1414.61,0.00019652,2]
[350247709,1737735075753,-500.0,0.00019652,2]
[350247710,1737735075764,-500.0,0.00019652,2]
[350247711,1737735075775,-3342.18,0.00019652,2]
[350247712,1737735075785,-500.0,0.00019652,2]
[350247713,1737735075796,-422.39423618,0.00019652,2]
[350247714,1737735075806,-2092.8,0.00019652,2]
[350247715,1737735075817,-500.0,0.00019652,2]
[350247716,1737735075827,-167.19692286,0.00019652,2]
[350247717,1737735075838,-521.83,0.00019652,2]
[350247718,1737735075847,-1013.22,0.00019652,2]
[350247719,1737735075857,-500.0,0.00019652,2]
[350247720,1737735075867,-500.0,0.00019652,2]
[350247721,1737735075878,-926.77,0.00019652,2]
[350247722,1737735075888,-500.0,0.00019652,2]
[350247723,1737735075898,-926.0,0.00019652,2]
[350247724,1737735075908,-6114.66,0.00019652,2]
[350247725,1737735075919,-500.0,0.00019653,2]
[350247726,1737735075929,-500.0,0.00019653,2]
[350247727,1737735075939,-500.0,0.00019653,2]
[350247728,1737735075949,-500.0,0.00019653,2]
[350247729,1737735075962,-747.3,0.00019653,2]
[350247730,1737735075972,-578.69,0.00019653,2]
[350247731,1737735075982,-289.55755136,0.00019653,2]
[350247732,1737735075991,-550.89,0.00019653,2]
[350247733,1737735076003,-500.0,0.00019653,2]
[350247734,1737735076013,-500.0,0.00019653,2]
[350247735,1737735076023,-500.0,0.00019653,2]
[350247736,1737735076033,-150.0,0.0001967,4]
[350247737,1737735076042,-500.0,0.00019673,2]
[350247738,1737735076052,-21080.07698603,0.00019689,2]
[350247739,1737735076061,-500.0,0.00019689,2]
[350247740,1737735076071,-798.61,0.00019689,2]
[350247741,1737735076081,-2156.11,0.00019689,2]
[350247742,1737735076091,-500.0,0.00019689,2]
[350247743,1737735076100,-927.0,0.00019689,2]
[350247744,1737735076110,-500.0,0.00019689,2]
[350247745,1737735076119,-544.0,0.00019689,2]
[350247746,1737735076129,-500.0,0.00019689,2]
[350247747,1737735076139,-517.74,0.00019689,2]
[350247748,1737735076149,-1223.83,0.00019689,2]
[350247749,1737735076159,-1716.18,0.00019689,2]
[350247750,1737735076169,-1769.78,0.00019689,2]
[350247751,1737735076179,-617.72,0.00019689,2]
[350247752,1737735076188,-3582.9,0.00019689,2]
[350247753,1737735076198,-6343.0,0.00019689,2]
[350247754,1737735076207,-851.26,0.00019689,2]
[350247755,1737735076217,-592.94,0.00019689,2]
[350247756,1737735076227,-500.0,0.00019689,2]
[350247757,1737735076237,-805.09,0.00019689,2]
[350247758,1737735076247,-1086.75,0.00019689,2]
[350247759,1737735076257,-1200.3,0.00019689,2]
[350247760,1737735076267,-500.0,0.00019689,2]
[350247761,1737735076276,-1000.0,0.00019689,2]
[350247762,1737735076285,-150.0,0.0001969,4]
[350247763,1737735076295,-500.0,0.00019697,2]
[350247764,1737735076304,-150.0,0.00019701,4]
[350247765,1737735076314,-152.0,0.00019704,5]
[350247766,1737735076324,-150.0,0.00019713,4]
[350247767,1737735076334,-623.66119626,0.00019728,2]
[350247768,1737735076344,-3000.0,0.0001975,2]
[350247769,1737735076354,-150.0,0.00019756,4]
[350247770,1737735076364,-150.0,0.00019767,4]
[350247771,1737735076373,-150.0,0.00019767,4]
[350247772,1737735076383,-509.51,0.00019788,2]
[350247773,1737735076393,-577.72,0.00019788,2]
[350247774,1737735076402,-580.64,0.00019788,2]
[350247775,1737735076412,-679.78,0.00019788,2]
[350247776,1737735076422,-1705.53,0.00019788,2]
[350247777,1737735076432,-2554.5,0.00019788,2]
[350247778,1737735076441,-676.513947,0.00019788,2]
[350247779,1737735076451,-500.0,0.00019788,2]
[350247780,1737735076460,-956.9,0.00019788,2]
[350247781,1737735076470,-1945.88,0.00019788,2]
[350247782,1737735076480,-2012.13,0.00019788,2]
[350247783,1737735076489,-622.12,0.00019788,2]
[350247784,1737735076500,-846.729176,0.00019788,2]
[350247785,1737735076510,-1583.64,0.00019788,2]
[350247786,1737735076520,-564.16,0.00019788,2]
[350247787,1737735076529,-1121.35,0.00019788,2]
[350247788,1737735076539,-871.63,0.00019788,2]
[350247789,1737735076549,-1370.61,0.00019788,2]
[350247790,1737735076559,-705.29,0.00019788,2]
[350247791,1737735076568,-1962.44,0.00019788,2]
[350247792,1737735076578,-718.17,0.00019788,2]
[350247793,1737735076588,-619.05,0.00019788,2]
[350247794,1737735076598,-865.04,0.00019788,2]
[350247795,1737735076608,-2217.77,0.00019788,2]
[350247796,1737735076617,-722.1,0.00019788,2]
[350247797,1737735076627,-562.1,0.00019788,2]
[350247798,1737735076637,-2901.51,0.00019788,2]
[350247799,1737735076646,-503.38,0.00019788,2]
[350247800,1737735076656,-1511.51,0.00019788,2]
[350247801,1737735076666,-500.0,0.00019788,2]
[350247802,1737735076677,-1656.27,0.00019788,2]
[350247803,1737735076687,-831.3,0.00019788,2]
[350247804,1737735076696,-1027.33,0.00019788,2]
[350247805,1737735076705,-1185.98,0.00019788,2]
[350247806,1737735076715,-985.79,0.00019788,2]
[350247807,1737735076725,-2108.39,0.00019788,2]
[350247808,1737735076736,-1080.47,0.00019788,2]
[350247809,1737735076747,-838.77,0.00019788,2]
[350247810,1737735076757,-538.96,0.00019788,2]
[350247811,1737735076767,-500.0,0.00019788,2]
[350247812,1737735076777,-578.58,0.00019788,2]
[350247813,1737735076787,-2039.23,0.00019788,2]
[350247814,1737735076797,-1068.15,0.00019788,2]
[350247815,1737735076807,-592.49,0.00019788,2]
[350247816,1737735076817,-1155.96,0.00019788,2]
[350247817,1737735076828,-2273.11,0.00019788,2]
[350247818,1737735076838,-1338.57,0.00019788,2]
[350247819,1737735076848,-3483.22,0.00019788,2]
[350247820,1737735076858,-500.0,0.00019788,2]
[350247821,1737735076869,-872.95,0.00019788,2]
[350247822,1737735076881,-1147.06,0.00019788,2]
[350247823,1737735076891,-500.0,0.00019788,2]
[350247824,1737735076901,-1277.07,0.00019788,2]
[350247825,1737735076912,-2989.39,0.00019788,2]
[350247826,1737735076923,-644.25,0.00019788,2]
[350247827,1737735076933,-871.11,0.00019788,2]
[350247828,1737735076944,-500.0,0.00019789,2]
[350247829,1737735076954,-500.0,0.00019789,2]
[350247830,1737735076965,-500.0,0.00019789,2]
[350247831,1737735076975,-500.0,0.00019789,2]
[350247832,1737735076985,-500.0,0.00019789,2]
[350247833,1737735076997,-677.93,0.00019789,2]
[350247834,1737735077008,-500.0,0.00019789,2]
[350247835,1737735077018,-660.08,0.00019789,2]
[350247836,1737735077028,-500.0,0.00019789,2]
[350247837,1737735077038,-589.35,0.00019789,2]
[350247838,1737735077048,-500.0,0.00019789,2]
[350247839,1737735077059,-500.0,0.00019789,2]
[350247840,1737735077069,-770.43,0.00019789,2]
[350247841,1737735077079,-500.0,0.00019789,2]
[350247842,1737735077088,-500.0,0.00019789,2]
[350247843,1737735077098,-500.0,0.00019789,2]
[350247844,1737735077109,-513.79,0.00019789,2]
[350247845,1737735077119,-500.0,0.00019789,2]
[350247846,1737735077129,-580.89,0.00019789,2]
[350247847,1737735077139,-614.29,0.00019789,2]
[350247848,1737735077149,-500.0,0.00019789,2]
[350247849,1737735077159,-500.0,0.00019789,2]
[350247850,1737735077169,-500.0,0.00019789,2]
[350247851,1737735077179,-566.81,0.00019789,2]
[350247852,1737735077190,-767.86,0.00019789,2]
[350247853,1737735077200,-654.02,0.00019789,2]
[350247854,1737735077210,-500.0,0.00019789,2]
[350247855,1737735077220,-500.0,0.00019789,2]
[350247856,1737735077230,-500.0,0.00019789,2]
[350247857,1737735077239,-500.0,0.00019789,2]
[350247858,1737735077250,-500.0,0.00019789,2]
[350247859,1737735077260,-500.0,0.00019789,2]
[350247860,1737735077271,-500.0,0.00019789,2]
[350247861,1737735077281,-500.0,0.00019789,2]
[350247862,1737735077291,-500.0,0.00019789,2]
[350247863,1737735077301,-509.94,0.00019789,2]